fUST/lending_fUST_20251129
["ID","MTS","AMOUNT","RATE_DAILY","PERIOD"]
[395048926,1764372678168,-1569.31,0.00018356,2]
[395048927,1764372678179,-500.0,0.00018356,2]
[395048928,1764372678191,-926.99,0.00018356,2]
[395048929,1764372678201,-748.14,0.00018356,2]
[395048930,1764372678211,-1391.34,0.00018356,2]
[395048931,1764372678220,-500.0,0.00018356,2]
[395048932,1764372678231,-827.09,0.00018356,2]
[395048933,1764372678242,-2852.36,0.00018356,2]
[395048934,1764372678253,-1623.87,0.00018356,2]
[395048935,1764372678262,-653.82,0.00018356,2]
[395048936,1764372678273,-1970.71,0.00018356,2]
[395048937,1764372678284,-2847.39,0.00018356,2]
[395048938,1764372678294,-500.0,0.00018356,2]
[395048939,1764372678303,-500.0,0.00018356,2]
[395048940,1764372678312,-1845.23,0.00018356,2]
[395048941,1764372678322,-1583.3,0.00018356,2]
[395048942,1764372678331,-1427.64,0.00018356,2]
[395048943,1764372678341,-2878.0,0.00018356,2]
[395048944,1764372678352,-947.36,0.00018356,2]
[395048945,1764372678362,-664.96,0.00018356,2]
[395048946,1764372678371,-574.61069058,0.00018356,2]
[395048947,1764372678381,-1634.1,0.00018356,2]
[395048948,1764372678391,-500.0,0.00018356,2]
[395048949,1764372678402,-500.0,0.00018356,2]
[395048950,1764372678411,-914.62,0.00018356,2]
[395048951,1764372678421,-720.51,0.00018356,2]
[395048952,1764372678431,-2707.42,0.00018356,2]
[395048953,1764372678441,-500.0,0.00018356,2]
[395048954,1764372678451,-2750.36,0.00018356,2]
[395048955,1764372678461,-500.41,0.00018356,2]
[395048956,1764372678471,-523.44,0.00018356,2]
[395048957,1764372678480,-500.0,0.00018356,2]
[395048958,1764372678490,-1042.99,0.00018356,2]
[395048959,1764372678500,-645.02,0.00018356,2]
[395048960,1764372678510,-1245.52,0.00018356,2]
[395048961,1764372678519,-871.52,0.00018356,2]
[395048962,1764372678530,-1853.47,0.00018356,2]
[395048963,1764372678539,-3430.29,0.00018356,2]
[395048964,1764372678549,-730.4,0.00018356,2]
[395048965,1764372678559,-574.26,0.00018356,2]
[395048966,1764372678568,-500.0,0.00018356,2]
[395048967,1764372678578,-3218.16,0.00018356,2]
[395048968,1764372678587,-4526.99,0.00018356,2]
[395048969,1764372678597,-585.74452814,0.00018356,2]
[395048970,1764372678606,-17227.77,0.00018356,2]
[395048971,1764372678615,-500.0,0.00018356,2]
[395048972,1764372678625,-616.58,0.00018356,2]
[395048973,1764372678635,-3739.05,0.00018356,2]
[395048974,1764372678646,-1046.43,0.00018356,2]
[395048975,1764372678655,-500.0,0.00018356,2]
[395048976,1764372678665,-2184.6,0.00018356,2]
[395048977,1764372678674,-711.56,0.00018356,2]
[395048978,1764372678683,-1171.76,0.00018356,2]
[395048979,1764372678693,-727.45,0.00018356,2]
[395048980,1764372678702,-500.0,0.00018356,2]
[395048981,1764372678712,-184.62,0.00018356,2]
[395048982,1764372678722,-1037.69,0.00018356,2]
[395048983,1764372678732,-547.1,0.00018356,2]
[395048984,1764372678742,-500.0,0.00018356,2]
[395048985,1764372678752,-613.0,0.00018356,2]
[395048986,1764372678761,-1720.54,0.00018356,2]
[395048987,1764372678770,-500.0,0.00018356,2]
[395048988,1764372678780,-1980.65,0.00018356,2]
[395048989,1764372678789,-1023.19,0.00018356,2]
[395048990,1764372678799,-500.0,0.00018356,2]
[395048991,1764372678808,-641.61,0.00018356,2]
[395048992,1764372678818,-500.0,0.00018356,2]
[395048993,1764372678828,-1319.83,0.00018356,2]
[395048994,1764372678840,-4241.92,0.00018356,2]
[395048995,1764372678850,-500.0,0.00018356,2]
[395048996,1764372678861,-500.0,0.00018356,2]
[395048997,1764372678874,-529.06,0.00018356,2]
[395048998,1764372678885,-869.6,0.00018356,2]
[395048999,1764372678896,-7824.54,0.00018356,2]
[395049000,1764372678906,-1352.28,0.00018356,2]
[395049001,1764372678916,-599.48792784,0.00018356,2]
[395049002,1764372678926,-3967.65,0.00018356,2]
[395049003,1764372678938,-700.5,0.00018356,2]
[395049004,1764372678949,-4443.57,0.00018356,2]
[395049005,1764372678959,-952.39,0.00018356,2]
[395049006,1764372678968,-500.0,0.00018356,2]
[395049007,1764372678978,-500.0,0.00018356,2]
[395049008,1764372678988,-500.0,0.00018356,2]
[395049009,1764372678998,-2399.87,0.00018356,2]
[395049010,1764372679008,-500.0,0.00018356,2]
[395049011,1764372679019,-739.31,0.00018356,2]
[395049012,1764372679028,-699.9,0.00018356,2]
[395049013,1764372679039,-500.0,0.00018356,2]
[395049014,1764372679050,-977.12,0.00018356,2]
[395049015,1764372679060,-631.83,0.00018356,2]
[395049016,1764372679069,-2440.22,0.00018356,2]
[395049017,1764372679079,-1914.45,0.00018356,2]
[395049018,1764372679090,-500.0,0.00018356,2]
[395049019,1764372679100,-972.65,0.00018356,2]
[395049020,1764372679110,-3043.8,0.00018356,2]
[395049021,1764372679120,-593.89,0.00018356,2]
[395049022,1764372679129,-1510.04,0.00018356,2]
[395049023,1764372679138,-1101.92,0.00018356,2]
[395049024,1764372679147,-622.78,0.00018356,2]
[395049025,1764372679156,-3776.01,0.00018356,2]
[395049026,1764372679166,-609.93,0.00018356,2]
[395049027,1764372679175,-594.08,0.00018356,2]
[395049028,1764372679185,-500.0,0.00018356,2]
[395049029,1764372679195,-500.0,0.00018356,2]
[395049030,1764372679205,-789.87,0.00018356,2]
[395049031,1764372679214,-500.0,0.00018356,2]
[395049032,1764372679223,-538.45,0.00018356,2]
[395049033,1764372679233,-743.61,0.00018356,2]
[395049034,1764372679243,-1519.83,0.00018356,2]
[395049035,1764372679252,-648.6,0.00018356,2]
[395049036,1764372679262,-1080.24,0.00018356,2]
[395049037,1764372679272,-1011.32,0.00018356,2]
[395049038,1764372679281,-3113.95,0.00018356,2]
[395049039,1764372679291,-500.0,0.00018356,2]
[395049040,1764372679300,-1593.85,0.00018356,2]
[395049041,1764372679310,-1169.98,0.00018356,2]
[395049042,1764372679320,-689.09,0.00018356,2]
[395049043,1764372679330,-500.0,0.00018356,2]
[395049044,1764372679339,-3350.26,0.00018356,2]
[395049045,1764372679349,-3410.99,0.00018356,2]
[395049046,1764372679359,-10314.11,0.00018356,2]
[395049047,1764372679368,-3853.28,0.00018356,2]
[395049048,1764372679378,-500.0,0.00018356,2]
[395049049,1764372679387,-602.2689017,0.00018356,2]
[395049050,1764372679397,-706.65,0.00018356,2]
[395049051,1764372679407,-500.0,0.00018356,2]
[395049052,1764372679416,-500.0,0.00018356,2]
[395049053,1764372679426,-4235.14,0.00018356,2]
[395049054,1764372679435,-1077.53,0.00018356,2]
[395049055,1764372679445,-2764.79,0.00018356,2]
[395049056,1764372679457,-9314.33,0.00018356,2]
[395049057,1764372679467,-500.0,0.00018356,2]
[395049058,1764372679476,-433.30024899,0.00018356,2]
[395049059,1764372679486,-500.0,0.00018356,2]
[395049060,1764372679497,-500.0,0.00018356,2]
[395049061,1764372679508,-992.45,0.00018356,2]
[395049062,1764372679517,-500.0,0.00018356,2]
[395049063,1764372679528,-500.0,0.00018356,2]
[395049064,1764372679539,-500.0,0.00018356,2]
[395049065,1764372679549,-500.0,0.00018356,2]
[395049066,1764372679560,-711.68,0.00018356,2]
[395049067,1764372679570,-500.0,0.00018356,2]
[395049068,1764372679580,-2541.01,0.00018356,2]
[395049069,1764372679590,-934.11,0.00018356,2]
[395049070,1764372679602,-500.0,0.00018356,2]
[395049071,1764372679613,-500.0,0.00018356,2]
[395049072,1764372679623,-156.325075,0.000184,4]
[395049073,1764372679633,-156.325075,0.000184,4]
[395049074,1764372679643,-158.616141,0.000184,4]
[395049075,1764372679653,-158.616141,0.000184,4]
[395049076,1764372679663,-158.616141,0.000184,4]
[395049077,1764372679672,-178.0,0.00018405,2]
[395049078,1764372679682,-1503.40721938,0.00018412,2]
[395049079,1764372679693,-160.0,0.00018431,4]
[395049080,1764372679703,-224.39,0.00018481,2]
[395049081,1764372679955,-160.0,0.00018531,11]
[395049082,1764372679965,-360.0,0.00018537,2]
[395049083,1764372679974,-178.0,0.0001854,2]
[395049084,1764372679983,-360.09233234,0.00018549,2]
[395049085,1764372679992,-178.0,0.00018577,2]
[395049086,1764372680001,-178.0,0.00018577,2]
[395049087,1764372680011,-178.0,0.00018582,2]
[395049088,1764372680020,-568.67857251,0.00018624,2]
[395049089,1764372680030,-500.0,0.0001863,2]
[395049090,1764372680039,-500.0,0.0001863,2]
[395049091,1764372680048,-759.29,0.0001863,2]
[395049092,1764372680058,-500.0,0.0001863,2]
[395049093,1764372680068,-528.19,0.0001863,2]
[395049094,1764372680079,-500.0,0.0001863,2]
[395049095,1764372680088,-676.39,0.0001863,2]
[395049096,1764372680097,-668.24,0.0001863,2]
[395049097,1764372680106,-500.0,0.0001863,2]
[395049098,1764372680115,-500.0,0.0001863,2]
[395049099,1764372680124,-500.0,0.0001863,2]
[395049100,1764372680134,-588.95,0.0001863,2]
[395049101,1764372680143,-516.98,0.0001863,2]
[395049102,1764372680154,-500.0,0.0001863,2]
[395049103,1764372680163,-500.0,0.0001863,2]
[395049104,1764372680172,-500.0,0.0001863,2]
[395049105,1764372680180,-500.0,0.0001863,2]
[395049106,1764372680188,-500.0,0.0001863,2]
[395049107,1764372680198,-500.0,0.0001863,2]
[395049108,1764372680207,-500.0,0.0001863,2]
[395049109,1764372680217,-500.0,0.0001863,2]
[395049110,1764372680226,-590.98,0.0001863,2]
[395049111,1764372680235,-1600.44,0.0001863,2]
[395049112,1764372680245,-500.0,0.0001863,2]
[395049113,1764372680254,-500.0,0.0001863,2]
[395049114,1764372680263,-500.0,0.0001863,2]
[395049115,1764372680273,-500.0,0.0001863,2]
[395049116,1764372680283,-1149.74,0.0001863,2]
[395049117,1764372680292,-535.42,0.0001863,2]
[395049118,1764372680301,-564.74,0.0001863,2]
[395049119,1764372680311,-789.99,0.0001863,2]
[395049120,1764372680321,-500.0,0.0001863,2]
[395049121,1764372680330,-1749.39,0.0001863,2]
[395049122,1764372680340,-877.58,0.0001863,2]
[395049123,1764372680350,-500.0,0.0001863,2]
[395049124,1764372680359,-1045.4,0.0001863,2]
[395049125,1764372680368,-500.0,0.0001863,2]
[395049126,1764372680377,-500.0,0.0001863,2]
[395049127,1764372680387,-1078.66,0.0001863,2]
[395049128,1764372680397,-500.0,0.0001863,2]
[395049129,1764372680406,-619.42,0.0001863,2]
[395049130,1764372680416,-532.82088709,0.0001863,2]
[395049131,1764372680426,-500.0,0.0001863,2]
[395049132,1764372680435,-500.0,0.0001863,2]
[395049133,1764372680444,-500.0,0.0001863,2]
[395049134,1764372680454,-500.0,0.0001863,2]
[395049135,1764372680463,-1626.71,0.0001863,2]
[395049136,1764372680472,-500.0,0.0001863,2]
[395049137,1764372680482,-500.0,0.0001863,2]
[395049138,1764372680491,-982.61,0.0001863,2]
[395049139,1764372680500,-702.81,0.0001863,2]
[395049140,1764372680510,-500.0,0.0001863,2]
[395049141,1764372680519,-895.19,0.0001863,2]
[395049142,1764372680528,-500.0,0.0001863,2]
[395049143,1764372680538,-500.0,0.0001863,2]
[395049144,1764372680547,-786.71,0.0001863,2]
[395049145,1764372680556,-557.46,0.0001863,2]
[395049146,1764372680566,-625.18,0.0001863,2]
[395049147,1764372680575,-662.94,0.0001863,2]
[395049148,1764372680584,-781.26,0.0001863,2]
[395049149,1764372680593,-506.83,0.0001863,2]
[395049150,1764372680602,-500.0,0.0001863,2]
[395049151,1764372680612,-500.0,0.0001863,2]
[395049152,1764372680621,-578.17,0.0001863,2]
[395049153,1764372680631,-1345.53,0.0001863,2]
[395049154,1764372680640,-581.76,0.0001863,2]
[395049155,1764372680650,-774.86,0.0001863,2]
[395049156,1764372680667,-1012.47,0.0001863,2]
[395049157,1764372680680,-500.0,0.0001863,2]
[395049158,1764372680689,-514.46,0.0001863,2]
[395049159,1764372680700,-500.0,0.0001863,2]
[395049160,1764372680710,-904.73,0.0001863,2]
[395049161,1764372680720,-500.0,0.0001863,2]
[395049162,1764372680730,-500.0,0.0001863,2]
[395049163,1764372680740,-500.0,0.0001863,2]
[395049164,1764372680751,-536.95,0.0001863,2]
[395049165,1764372680760,-321.40403937,0.0001863,2]
[395049166,1764372680771,-513.22,0.0001863,2]
[395049167,1764372680780,-674.92,0.0001863,2]
[395049168,1764372680790,-500.0,0.0001863,2]
[395049169,1764372680800,-1511.14,0.0001863,2]
[395049170,1764372680810,-500.0,0.0001863,2]
[395049171,1764372680820,-500.0,0.0001863,2]
[395049172,1764372680830,-470.96412629,0.0001863,2]
[395049173,1764372680840,-1283.06,0.0001863,2]
[395049174,1764372680849,-503.17,0.0001863,2]
[395049175,1764372680859,-500.0,0.0001863,2]
[395049176,1764372680869,-748.2,0.0001863,2]
[395049177,1764372680881,-1855.57,0.0001863,2]
[395049178,1764372680891,-737.99,0.0001863,2]
[395049179,1764372680900,-500.0,0.0001863,2]
[395049180,1764372680910,-500.0,0.0001863,2]
[395049181,1764372680920,-775.93,0.0001863,2]
[395049182,1764372680929,-500.0,0.0001863,2]
[395049183,1764372680939,-271.55818358,0.0001863,2]
[395049184,1764372680949,-664.85,0.0001863,2]
[395049185,1764372680959,-1218.32,0.0001863,2]
[395049186,1764372680969,-624.09,0.0001863,2]
[395049187,1764372680979,-500.0,0.0001863,2]
[395049188,1764372680989,-500.0,0.0001863,2]
[395049189,1764372680999,-500.0,0.0001863,2]
[395049190,1764372681009,-889.44,0.0001863,2]
[395049191,1764372681019,-1110.45,0.0001863,2]
[395049192,1764372681029,-647.62,0.0001863,2]
[395049193,1764372681039,-2532.82,0.0001863,2]
[395049194,1764372681048,-500.0,0.0001863,2]
[395049195,1764372681058,-678.39,0.0001863,2]
[395049196,1764372681067,-500.0,0.0001863,2]
[395049197,1764372681076,-500.0,0.0001863,2]
[395049198,1764372681085,-258.55961696,0.0001863,2]
[395049199,1764372681094,-500.0,0.0001863,2]
[395049200,1764372681104,-500.0,0.0001863,2]
[395049201,1764372681113,-500.0,0.0001863,2]
[395049202,1764372681123,-500.0,0.0001863,2]
[395049203,1764372681132,-623.58,0.0001863,2]
[395049204,1764372681142,-1961.98,0.0001863,2]
[395049205,1764372681151,-500.0,0.0001863,2]
[395049206,1764372681165,-559.34,0.0001863,2]
[395049207,1764372681175,-560.57,0.0001863,2]
[395049208,1764372681185,-500.0,0.0001863,2]
[395049209,1764372681195,-553.87,0.0001863,2]
[395049210,1764372681205,-540.57379804,0.0001863,2]
[395049211,1764372681215,-761.09,0.0001863,2]
[395049212,1764372681225,-584.54,0.0001863,2]
[395049213,1764372681235,-500.0,0.0001863,2]
[395049214,1764372681244,-752.81,0.0001863,2]
[395049215,1764372681254,-500.0,0.0001863,2]
[395049216,1764372681264,-500.0,0.0001863,2]
[395049217,1764372681274,-979.71,0.0001863,2]
[395049218,1764372681284,-600.47,0.0001863,2]
[395049219,1764372681294,-551.36,0.0001863,2]
[395049220,1764372681303,-500.83,0.0001863,2]
[395049221,1764372681313,-500.0,0.0001863,2]
[395049222,1764372681323,-500.0,0.0001863,2]
[395049223,1764372681334,-805.91,0.0001863,2]
[395049224,1764372681344,-500.0,0.0001863,2]
[395049225,1764372681353,-727.16,0.0001863,2]
[395049226,1764372681363,-967.6,0.0001863,2]
[395049227,1764372681372,-500.0,0.0001863,2]
[395049228,1764372681382,-812.08,0.0001863,2]
[395049229,1764372681392,-888.91,0.0001863,2]
[395049230,1764372681402,-500.0,0.0001863,2]
[395049231,1764372681411,-531.64,0.0001863,2]
[395049232,1764372681421,-935.94,0.0001863,2]
[395049233,1764372681431,-151.0,0.0001863,2]
[395049234,1764372681440,-248.03168192,0.0001863,2]
[395049235,1764372681450,-877.57,0.0001863,2]
[395049236,1764372681460,-619.12,0.0001863,2]
[395049237,1764372681469,-1569.31,0.0001863,2]
[395049238,1764372681479,-500.0,0.0001863,2]
[395049239,1764372681489,-926.99,0.0001863,2]
[395049240,1764372681503,-748.14,0.0001863,2]
[395049241,1764372681513,-1391.34,0.0001863,2]
[395049242,1764372681524,-500.0,0.0001863,2]
[395049243,1764372681534,-827.09,0.0001863,2]
[395049244,1764372681544,-2852.36,0.0001863,2]
[395049245,1764372681554,-1623.87,0.0001863,2]
[395049246,1764372681564,-653.82,0.0001863,2]
[395049247,1764372681574,-1970.71,0.0001863,2]
[395049248,1764372681584,-2847.39,0.0001863,2]
[395049249,1764372681594,-500.0,0.0001863,2]
[395049250,1764372681603,-500.0,0.0001863,2]
[395049251,1764372681613,-1845.23,0.0001863,2]
[395049252,1764372681623,-1583.3,0.0001863,2]
[395049253,1764372681633,-1427.64,0.0001863,2]
[395049254,1764372681642,-2878.0,0.0001863,2]
[395049255,1764372681652,-947.36,0.0001863,2]
[395049256,1764372681662,-664.96,0.0001863,2]
[395049257,1764372681672,-1634.1,0.0001863,2]
[395049258,1764372681682,-500.0,0.0001863,2]
[395049259,1764372681692,-500.0,0.0001863,2]
[395049260,1764372681701,-914.62,0.0001863,2]
[395049261,1764372681711,-720.51,0.0001863,2]
[395049262,1764372681721,-2707.42,0.0001863,2]
[395049263,1764372681731,-500.0,0.0001863,2]
[395049264,1764372681740,-2750.36,0.0001863,2]
[395049265,1764372681749,-500.41,0.0001863,2]
[395049266,1764372681759,-523.44,0.0001863,2]
[395049267,1764372681768,-500.0,0.0001863,2]
[395049268,1764372681777,-1042.99,0.0001863,2]
[395049269,1764372681787,-645.02,0.0001863,2]
[395049270,1764372681796,-1245.52,0.0001863,2]
[395049271,1764372681806,-871.52,0.0001863,2]
[395049272,1764372681816,-1853.47,0.0001863,2]
[395049273,1764372681826,-3430.29,0.0001863,2]
[395049274,1764372681837,-730.4,0.0001863,2]
[395049275,1764372681847,-574.26,0.0001863,2]
[395049276,1764372681856,-500.0,0.0001863,2]
[395049277,1764372681866,-3218.16,0.0001863,2]
[395049278,1764372681878,-4526.99,0.0001863,2]
[395049279,1764372681889,-17227.77,0.0001863,2]
[395049280,1764372681899,-500.0,0.0001863,2]
[395049281,1764372681909,-616.58,0.0001863,2]
[395049282,1764372681919,-3739.05,0.0001863,2]
[395049283,1764372681928,-1046.43,0.0001863,2]
[395049284,1764372681938,-500.0,0.0001863,2]
[395049285,1764372681947,-711.56,0.0001863,2]
[395049286,1764372681957,-1171.76,0.0001863,2]
[395049287,1764372681968,-727.45,0.0001863,2]
[395049288,1764372681978,-500.0,0.0001863,2]
[395049289,1764372681987,-1037.69,0.0001863,2]
[395049290,1764372681997,-2184.6,0.0001863,2]
[395049291,1764372682007,-547.1,0.0001863,2]
[395049292,1764372682016,-500.0,0.0001863,2]
[395049293,1764372682025,-613.0,0.0001863,2]
[395049294,1764372682035,-1720.54,0.0001863,2]
[395049295,1764372682044,-500.0,0.0001863,2]
[395049296,1764372682053,-1980.65,0.0001863,2]
[395049297,1764372682063,-1023.19,0.0001863,2]
[395049298,1764372682072,-500.0,0.0001863,2]
[395049299,1764372682082,-641.61,0.0001863,2]
[395049300,1764372682092,-500.0,0.0001863,2]
[395049301,1764372682102,-1319.83,0.0001863,2]
[395049302,1764372682112,-4241.92,0.0001863,2]
[395049303,1764372682121,-500.0,0.0001863,2]
[395049304,1764372682132,-529.06,0.0001863,2]
[395049305,1764372682141,-500.0,0.0001863,2]
[395049306,1764372682150,-869.6,0.0001863,2]
[395049307,1764372682160,-7824.54,0.0001863,2]
[395049308,1764372682169,-1352.28,0.0001863,2]
[395049309,1764372682178,-3967.65,0.0001863,2]
[395049310,1764372682188,-700.5,0.0001863,2]
[395049311,1764372682198,-4443.57,0.0001863,2]
[395049312,1764372682207,-952.39,0.0001863,2]
[395049313,1764372682217,-500.0,0.0001863,2]
[395049314,1764372682226,-500.0,0.0001863,2]
[395049315,1764372682236,-500.0,0.0001863,2]
[395049316,1764372682246,-2399.87,0.0001863,2]
[395049317,1764372682256,-500.0,0.0001863,2]
[395049318,1764372682380,-739.31,0.0001863,2]
[395049319,1764372682390,-699.9,0.0001863,2]
[395049320,1764372682400,-500.0,0.0001863,2]
[395049321,1764372682409,-977.12,0.0001863,2]
[395049322,1764372682419,-631.83,0.0001863,2]
[395049323,1764372682428,-2440.22,0.0001863,2]
[395049324,1764372682436,-1914.45,0.0001863,2]
[395049325,1764372682445,-500.0,0.0001863,2]
[395049326,1764372682454,-972.65,0.0001863,2]
[395049327,1764372682464,-3043.8,0.0001863,2]
[395049328,1764372682473,-593.89,0.0001863,2]
[395049329,1764372682482,-1510.04,0.0001863,2]
[395049330,1764372682491,-1101.92,0.0001863,2]
[395049331,1764372682501,-622.78,0.0001863,2]
[395049332,1764372682510,-3776.01,0.0001863,2]
[395049333,1764372682519,-609.93,0.0001863,2]
[395049334,1764372682529,-594.08,0.0001863,2]
[395049335,1764372682538,-500.0,0.0001863,2]
[395049336,1764372682547,-500.0,0.0001863,2]
[395049337,1764372682557,-789.87,0.0001863,2]
[395049338,1764372682566,-500.0,0.0001863,2]
[395049339,1764372682576,-538.45,0.0001863,2]
[395049340,1764372682585,-743.61,0.0001863,2]
[395049341,1764372682595,-1519.83,0.0001863,2]
[395049342,1764372682604,-648.6,0.0001863,2]
[395049343,1764372682614,-1080.24,0.0001863,2]
[395049344,1764372682623,-1011.32,0.0001863,2]
[395049345,1764372682632,-3113.95,0.0001863,2]
[395049346,1764372682642,-614.87956844,0.0001863,2]
[395049347,1764372682651,-1593.85,0.0001863,2]
[395049348,1764372682661,-1169.98,0.0001863,2]
[395049349,1764372682670,-500.0,0.0001863,2]
[395049350,1764372682679,-3350.26,0.0001863,2]
[395049351,1764372682688,-3410.99,0.0001863,2]
[395049352,1764372682698,-10314.11,0.0001863,2]
[395049353,1764372682708,-3853.28,0.0001863,2]
[395049354,1764372682717,-500.0,0.0001863,2]
[395049355,1764372682726,-689.09,0.0001863,2]
[395049356,1764372682735,-706.65,0.0001863,2]
[395049357,1764372682744,-500.0,0.0001863,2]
[395049358,1764372682753,-500.0,0.0001863,2]
[395049359,1764372682763,-4235.14,0.0001863,2]
[395049360,1764372682772,-1077.53,0.0001863,2]
[395049361,1764372682781,-2764.79,0.0001863,2]
[395049362,1764372682790,-9314.33,0.0001863,2]
[395049363,1764372682799,-500.0,0.0001863,2]
[395049364,1764372682808,-500.0,0.0001863,2]
[395049365,1764372682818,-500.0,0.0001863,2]
[395049366,1764372682827,-992.45,0.0001863,2]
[395049367,1764372682836,-500.0,0.0001863,2]
[395049368,1764372682845,-500.0,0.0001863,2]
[395049369,1764372682854,-500.0,0.0001863,2]
[395049370,1764372682864,-500.0,0.0001863,2]
[395049371,1764372682875,-711.68,0.0001863,2]
[395049372,1764372682886,-500.0,0.0001863,2]
[395049373,1764372682895,-2541.01,0.0001863,2]
[395049374,1764372682905,-934.11,0.0001863,2]
[395049375,1764372682914,-500.0,0.0001863,2]
[395049376,1764372682923,-500.0,0.0001863,2]
[395049377,1764372682934,-178.0,0.00018641,2]
[395049378,1764372682944,-1010.02835872,0.00018664,2]
[395049379,1764372682954,-2500.0,0.00018664,2]
[395049380,1764372682963,-2474.0492502,0.00018664,2]
[395049381,1764372682972,-442.82207776,0.00018664,2]
[395049382,1764372682981,-626.49255712,0.00018664,2]
[395049383,1764372682991,-508.1809289,0.00018664,2]
[395049384,1764372682999,-2500.0,0.00018664,2]
[395049385,1764372683009,-278.14199289,0.00018664,2]
[395049386,1764372683018,-958.74396004,0.00018664,2]
[395049387,1764372683027,-1191.01505335,0.00018664,2]
[395049388,1764372683036,-1609.56546289,0.00018664,2]
[395049389,1764372683045,-1486.58745088,0.00018664,2]
[395049390,1764372683054,-859.82075283,0.00018664,2]
[395049391,1764372683064,-2500.0,0.00018664,2]
[395049392,1764372683074,-1146.34726435,0.00018664,2]
[395049393,1764372683084,-1500.0,0.00018695,2]
[395049394,1764372683093,-666.0,0.00018758,2]
[395049395,1764372683102,-156.325075,0.00018767,2]
[395049396,1764372683112,-158.616141,0.00018767,2]
[395049397,1764372683121,-400.0,0.0001879,2]
[395049398,1764372683130,-400.0,0.0001879,3]
[395049399,1764372683139,-993953.8847227,0.0001881,2]
[395049400,1764372683148,-270.0455652,0.00018819,2]
[395049401,1764372683157,-160.0,0.0001883,12]
[395049402,1764372683166,-500.0,0.00018836,2]
[395049403,1764372683175,-500.0,0.00018904,2]
[395049404,1764372683184,-500.0,0.00018904,2]
[395049405,1764372683193,-759.29,0.00018904,2]
[395049406,1764372683203,-500.0,0.00018904,2]
[395049407,1764372683212,-528.19,0.00018904,2]
[395049408,1764372683222,-500.0,0.00018904,2]
[395049409,1764372683231,-676.39,0.00018904,2]
[395049410,1764372683240,-668.24,0.00018904,2]
[395049411,1764372683249,-500.0,0.00018904,2]
[395049412,1764372683259,-500.0,0.00018904,2]
[395049413,1764372683268,-336.3,0.00018904,2]
[395049414,1764372683277,-588.95,0.00018904,2]
[395049415,1764372683287,-516.98,0.00018904,2]
[395049416,1764372683296,-500.0,0.00018904,2]
[395049417,1764372683305,-500.0,0.00018904,2]
[395049418,1764372683315,-500.0,0.00018904,2]
[395049419,1764372683324,-500.0,0.00018904,2]
[395049420,1764372683334,-500.0,0.00018904,2]
[395049421,1764372683343,-500.0,0.00018904,2]
[395049422,1764372683352,-500.0,0.00018904,2]
[395049423,1764372683362,-500.0,0.00018904,2]
[395049424,1764372683371,-590.98,0.00018904,2]
[395049425,1764372683382,-1600.44,0.00018904,2]